bitfinex-derivatives/quotes_ETHF0:USTF0_20230701
["timestamp","ask_amount","ask_price","bid_price","bid_amount"]
[1688229111898,3.80710635,1919.7,1919.6,4.47905471]
[1688229112204,3.52039,1919.7,1919.6,4.47905471]
[1688229113208,3.80710635,1919.7,1919.6,4.47905471]
[1688229113405,2.28658704,1919.9,1919.6,4.47905471]
[1688229113601,3.98922,1920.0,1919.8,3.281]
[1688229113909,3.98922,1920.0,1919.9,0.31256]
[1688229114307,3.98922,1920.0,1919.9,0.88004412]
[1688229115505,3.2078,1920.0,1919.9,4.16204412]
[1688229116007,0.9343707,1920.1,1919.9,4.16204412]
[1688229116213,3.98923,1920.2,1919.9,4.26604412]
[1688229118413,4.30153999,1920.2,1919.9,4.26604412]
[1688229118704,5.23591069,1920.2,1919.9,4.26604412]
[1688229120409,0.28671635,1920.1,1919.9,4.26604412]
[1688229120705,0.31254,1920.0,1919.9,4.26604412]
[1688229121603,0.31254,1920.0,1919.9,4.16204412]
[1688229127617,0.59925635,1920.0,1919.9,3.59456]
[1688229128114,3.80705635,1920.0,1919.9,3.59456]
[1688229132112,3.80705635,1920.0,1919.9,0.31256]
[1688229132311,5.05373704,1920.0,1919.9,0.31256]
[1688229138822,5.46170533,1920.0,1919.9,0.31256]
[1688229139426,5.56570533,1920.0,1919.9,0.31256]
[1688229142122,8.82970533,1920.0,1919.9,0.31256]
[1688229145835,8.72570533,1920.0,1919.9,0.31256]
[1688229152945,8.72570533,1920.0,1919.8,0.78141]
[1688229153240,3.59456,1919.9,1919.8,0.78141]
[1688229153639,3.59456,1919.9,1919.8,0.78425561]
[1688229153848,3.59456,1919.9,1919.8,0.00284561]
[1688229155047,3.59456,1919.9,1919.8,0.31542561]
[1688229155746,3.59456,1919.9,1919.8,0.00284561]
[1688229156445,3.69856,1919.9,1919.8,0.00284561]
[1688229156651,3.69856,1919.9,1919.7,0.40682132]
[1688229156848,7.07082634,1919.8,1919.7,0.40682132]
[1688229157050,8.31777704,1919.8,1919.5,0.78155]
[1688229157245,5.10997704,1919.8,1919.7,0.00379434]
[1688229157550,7.38340634,1919.8,1919.6,0.00474317]
[1688229157750,8.31777704,1919.8,1919.7,0.00379434]
[1688229158253,8.31777704,1919.8,1919.5,1.19513986]
[1688229158451,5.10997704,1919.8,1919.7,0.00379434]
[1688229158749,7.38340634,1919.8,1919.5,1.19513986]
[1688229158942,3.52041,1919.6,1919.5,1.19513986]
[1688229159143,3.80712635,1919.6,1919.5,1.19513986]
[1688229160851,4.11943634,1919.6,1919.5,1.19513986]
[1688229172061,7.40143634,1919.6,1919.5,1.20083196]
[1688229172360,8.75991779,1919.6,1919.5,1.20083196]
[1688229173958,8.75991779,1919.6,1919.5,0.41928196]
[1688229174164,7.82554709,1919.6,1919.5,0.41928196]
[1688229174367,7.80754709,1919.6,1919.5,0.41928196]
[1688229180367,7.91154709,1919.6,1919.5,0.41928196]
[1688229180569,7.80754709,1919.6,1919.5,0.41928196]
[1688229181267,7.80754709,1919.6,1919.5,0.73190196]
[1688229181566,4.11943634,1919.6,1919.5,0.73190196]
[1688229182768,0.59932635,1919.6,1919.5,0.73190196]
[1688229185370,3.80712635,1919.6,1919.5,0.73190196]
[1688229189271,0.59932635,1919.6,1919.5,0.73190196]
[1688229192071,3.88132635,1919.6,1919.5,0.73190196]
[1688229192267,2.12441712,1919.7,1919.5,4.01390196]
[1688229192576,0.78153,1919.7,1919.5,4.01390196]
[1688229192776,0.78153,1919.7,1919.6,0.56748412]
[1688229192974,0.78153,1919.7,1919.6,0.88009412]
[1688229193175,0.78153,1919.7,1919.6,0.88483729]
[1688229193864,0.31261,1919.8,1919.6,4.16583729]
[1688229194071,0.78145,1919.9,1919.8,0.31258]
[1688229194469,0.78145,1919.9,1919.8,0.31542561]
[1688229195273,0.78145,1919.9,1919.8,0.88290973]
[1688229197475,1.06816635,1919.9,1919.8,0.88290973]
[1688229198274,1.06816635,1919.9,1919.8,0.31542561]
[1688229198475,4.33416635,1919.9,1919.8,0.00284561]
[1688229198977,5.26853705,1919.9,1919.8,0.00284561]
[1688229199176,10.31103705,1919.9,1919.6,0.31261]
[1688229199373,3.5786,1919.7,1919.6,0.31261]
[1688229199580,3.86531635,1919.7,1919.6,0.31261]
[1688229201881,3.86531635,1919.7,1919.6,0.31735317]
[1688229202680,3.86531635,1919.7,1919.6,0.00474317]
[1688229204787,3.86531635,1919.7,1919.6,0.31736317]
[1688229205394,4.79968705,1919.7,1919.6,0.31736317]
[1688229205590,4.79968705,1919.7,1919.6,0.00474317]
[1688229209794,4.90368705,1919.7,1919.6,0.00474317]
[1688229210207,5.31534311,1919.7,1919.6,0.00474317]
[1688229211907,5.31534311,1919.7,1919.3,10.25156]
[1688229212102,3.264,1919.4,1919.3,10.25156]
[1688229212407,3.86336635,1919.4,1919.3,10.25156]
[1688229213305,3.86336635,1919.4,1919.2,0.78168]
[1688229213504,7.38347634,1919.4,1919.2,0.78168]
[1688229213714,8.31784704,1919.4,1919.2,0.78168]
[1688229214018,5.05384704,1919.4,1919.2,4.06268]
[1688229217014,5.05384704,1919.4,1919.3,0.00759026]
[1688229219919,1.84604704,1919.4,1919.3,0.32025026]
[1688229220118,0.91167634,1919.4,1919.3,0.32025026]
[1688229221414,4.11947634,1919.4,1919.3,0.32025026]
[1688229221610,4.74119704,1919.4,1919.3,0.00759026]
[1688229222217,8.02319704,1919.4,1919.3,0.00759026]
[1688229223421,8.45037431,1919.4,1919.3,0.00759026]
[1688229235930,8.55437431,1919.4,1919.3,0.00759026]
[1688229236241,0.00781657,1919.2,1918.6,0.17102417]
[1688229236434,3.2078,1918.9,1918.8,9.7301]
[1688229236635,3.49451635,1918.9,1918.8,10.30233125]
[1688229236842,3.49451635,1918.9,1918.8,9.73484713]
[1688229240935,3.49451635,1918.9,1918.8,0.00474713]
[1688229241328,0.9343707,1919.0,1918.8,3.386]
[1688229241528,3.2078,1919.1,1918.8,3.39074713]
[1688229241733,3.2078,1919.1,1918.8,3.95823125]
[1688229242136,3.2078,1919.1,1918.9,3.282]
[1688229242439,3.2078,1919.0,1918.9,3.282]
[1688229242631,3.2078,1919.0,1918.9,8.5599]
[1688229243436,3.21561657,1919.2,1918.9,8.5599]
[1688229243633,3.21561657,1919.2,1919.1,3.282]
[1688229246242,3.21561657,1919.2,1919.1,3.386]
[1688229248444,3.21561657,1919.2,1919.1,0.104]
[1688229248841,3.21561657,1919.2,1919.0,8.70518412]
[1688229249047,3.50233292,1919.2,1919.0,8.70518412]
[1688229251745,4.15369657,1919.2,1919.1,0.3127]
[1688229251937,4.44041292,1919.2,1919.1,0.3127]
[1688229252139,4.44041292,1919.2,1919.1,3.5947]
[1688229255146,4.44041292,1919.2,1919.1,0.3127]
[1688229277066,4.15369657,1919.2,1919.1,0.3127]
[1688229278163,4.44041292,1919.2,1919.1,0.3127]
[1688229278966,4.15369657,1919.2,1919.1,0.3127]
[1688229279581,4.44041292,1919.2,1919.1,0.3127]
[1688229297881,4.44041292,1919.2,1919.1,3.5937]
[1688229297882,0.00781657,1919.2,1919.1,3.5937]
[1688229299389,0.32049657,1919.2,1919.1,3.5937]
[1688229300690,0.32049657,1919.2,1919.1,3.5947]
[1688229303887,0.00781657,1919.2,1919.1,3.6987]
[1688229306490,0.00781657,1919.2,1919.1,8.615]
[1688229314282,0.00781657,1919.2,1919.1,8.511]
[1688229314890,3.21561657,1919.2,1919.1,8.511]
[1688229315685,0.00781657,1919.2,1919.1,8.511]
[1688229317388,3.81501292,1919.2,1919.1,8.511]
[1688229317696,3.81501292,1919.2,1919.1,0.3127]
[1688229318192,4.74938362,1919.2,1919.1,0.3127]
[1688229318383,0.104,1919.1,1919.0,0.41336835]
[1688229318587,0.72900999,1919.1,1919.0,0.41336835]
[1688229318795,0.72900999,1919.1,1919.0,0.00284798]
[1688229319092,0.72900999,1919.1,1919.0,0.31555798]
[1688229319290,1.66338069,1919.1,1919.0,0.31555798]
[1688229326302,1.66338069,1919.1,1919.0,0.00284798]
[1688229327604,1.66338069,1919.1,1919.0,0.31555798]
[1688229329901,1.66338069,1919.1,1919.0,0.00284798]
[1688229330493,1.66338069,1919.1,1919.0,0.31555798]
[1688229332307,4.92938069,1919.1,1919.0,0.00284798]
[1688229333905,4.92938069,1919.1,1919.0,0.31555798]
[1688229334209,1.66338069,1919.1,1919.0,0.31555798]
[1688229336607,1.55938069,1919.1,1919.0,0.31555798]
[1688229337009,4.92938069,1919.1,1919.0,0.00284798]
[1688229337211,4.92938069,1919.1,1918.7,4.06383]
[1688229337212,0.28671635,1919.0,1918.7,0.31277]
[1688229337400,6.5778,1918.8,1918.6,0.78187]
[1688229337709,0.59948635,1918.7,1918.6,1.2069162]
[1688229338208,4.29779634,1918.7,1918.5,0.782]
[1688229338404,3.2078,1918.6,1918.5,0.782]
[1688229338606,6.78459,1918.6,1918.5,0.782]
[1688229340312,6.78459,1918.6,1918.5,1.19920938]
[1688229342107,3.52059,1918.6,1918.5,1.19920938]
[1688229344414,3.52059,1918.6,1918.5,0.41720938]
[1688229344610,0.59902634,1918.5,1918.3,5.61756]
[1688229344912,0.91184634,1918.5,1918.4,0.31281]
[1688229345112,4.11964634,1918.5,1918.4,0.31281]
[1688229345307,7.38564634,1918.5,1918.3,1.19102915]
[1688229345518,3.56582,1918.4,1918.3,1.19102915]
[1688229345909,4.5001907,1918.4,1918.3,1.19102915]
[1688229346507,4.5001907,1918.4,1918.3,0.40906915]
[1688229346708,4.5001907,1918.4,1918.3,0.31284]
[1688229347310,4.78690705,1918.4,1918.3,0.31948875]
[1688229348618,4.78690705,1918.4,1918.3,0.31284]
[1688229349217,0.9343707,1918.4,1918.3,0.31948875]
[1688229349405,5.12821704,1918.4,1918.2,5.54795]
[1688229349720,3.2078,1918.3,1918.2,5.97187082]
[1688229350025,3.52064,1918.3,1918.2,5.97187082]
[1688229350314,6.78664,1918.3,1918.2,0.42392082]
[1688229350615,6.78664,1918.3,1918.1,0.31286]
[1688229350818,4.19387634,1918.2,1918.1,0.31286]
[1688229351813,5.12725068,1918.2,1918.1,0.31286]
[1688229352119,4.19387634,1918.2,1918.1,0.31286]
[1688229355818,7.25594,1918.3,1918.1,0.31286]
[1688229356414,7.54265635,1918.3,1918.1,0.31286]
[1688229356917,3.266,1918.2,1918.0,6.53459489]
[1688229357119,7.38569634,1918.1,1917.9,2.13320275]
[1688229357316,7.38569634,1918.1,1917.9,0.3129]
[1688229357317,3.282,1918.0,1917.9,0.3129]
[1688229357616,3.59489,1918.0,1917.9,0.3129]
[1688229357815,3.59489,1918.0,1917.9,0.31670147]
[1688229358117,3.59489,1918.0,1917.9,0.42782814]
[1688229358518,6.87689,1918.0,1917.9,0.00380147]
[1688229358723,6.87689,1918.0,1917.6,0.31295]
[1688229359023,3.2078,1917.7,1917.6,0.31295]
[1688229359321,3.49451635,1917.7,1917.6,0.88043412]
[1688229359911,4.14653,1918.0,1917.6,4.26643412]
[1688229360213,0.31289,1918.1,1917.9,0.4169]
[1688229360419,3.2078,1918.0,1917.9,0.98438412]
[1688229360620,3.52069,1918.0,1917.9,0.98438412]
[1688229361516,3.52069,1918.0,1917.9,0.3129]
[1688229361725,3.52069,1918.0,1917.9,0.4169]
[1688229362116,3.52069,1918.0,1917.9,3.6989]
[1688229363623,3.52069,1918.0,1917.9,3.5949]
[1688229363821,3.21562065,1918.2,1917.9,3.6989]
[1688229364025,3.21562065,1918.2,1918.1,3.282]
[1688229364218,3.21562065,1918.2,1918.1,3.59486]
[1688229365727,3.21562065,1918.2,1918.1,3.69886]
[1688229366625,3.21562065,1918.2,1918.1,3.69786]
[1688229367025,0.00782065,1918.2,1918.1,3.69786]
[1688229367320,0.00782065,1918.2,1918.1,8.71726]
[1688229373632,3.2078,1918.6,1918.3,0.31282]
[1688229373833,3.2078,1918.6,1918.5,3.59478]
[1688229374032,3.2078,1918.6,1918.5,4.16226412]
[1688229374627,0.0078184,1918.7,1918.5,4.16226412]
[1688229374934,0.0078184,1918.7,1918.6,3.281]
[1688229375126,0.0078184,1918.7,1918.6,3.59377]
[1688229376624,0.0078184,1918.7,1918.6,8.41367]
[1688229381337,0.60728475,1918.7,1918.6,8.41367]
[1688229381540,0.60728475,1918.7,1918.6,3.59377]
[1688229382129,0.60728475,1918.7,1918.6,0.31277]
[1688229383749,0.29453475,1918.7,1918.6,0.31277]
[1688229384038,0.0078184,1918.7,1918.6,0.31277]
[1688229385132,0.29453475,1918.7,1918.6,0.31277]
[1688229385545,0.0078184,1918.7,1918.6,0.31277]
[1688229387339,0.0078184,1918.7,1918.6,3.59477]
[1688229389241,0.29453475,1918.7,1918.6,3.59477]
[1688229389641,0.0078184,1918.7,1918.6,3.59477]
[1688229398851,0.0078184,1918.7,1918.6,4.00617281]
[1688229400353,0.29453475,1918.7,1918.6,4.00617281]
[1688229401654,0.0078184,1918.7,1918.6,4.00617281]
[1688229404251,0.0078184,1918.7,1918.6,8.86157281]
[1688229405153,0.0078184,1918.7,1918.6,12.06937281]
[1688229405353,0.0078184,1918.7,1918.6,8.86157281]
[1688229430266,0.0078184,1918.7,1918.6,14.06357281]
[1688229430469,0.40745604,1919.0,1918.7,5.76948412]
[1688229430766,3.52048,1919.2,1918.9,3.282]
[1688229430971,4.45385155,1919.2,1919.1,3.282]
[1688229431174,4.7405679,1919.2,1919.1,3.59469]
[1688229432371,4.45385155,1919.2,1919.1,3.59469]
[1688229434567,4.86333823,1919.2,1919.1,3.59469]
[1688229434767,4.55065823,1919.2,1919.1,3.59469]
[1688229435481,5.15004458,1919.2,1919.1,3.59469]
[1688229435675,5.15004458,1919.2,1919.0,0.88018412]
[1688229435676,5.25404458,1919.2,1919.0,3.5947]
[1688229435877,3.57630999,1919.1,1918.8,4.21912]
[1688229436081,3.91122635,1919.0,1918.9,0.31272]
[1688229436376,3.91122635,1919.0,1918.8,3.281]
[1688229436583,3.57630999,1918.9,1918.7,0.78183]
[1688229436879,3.91125635,1918.8,1918.7,0.31276]
[1688229440486,3.59851635,1918.8,1918.7,0.31276]
[1688229440683,3.2078,1918.8,1918.7,3.59376]
[1688229441481,0.93337155,1918.9,1918.7,3.59376]
[1688229442085,0.93337155,1918.9,1918.8,3.281]
[1688229442287,0.93337155,1918.9,1918.8,3.59374]
[1688229442982,1.24609155,1918.9,1918.8,3.59374]
[1688229446692,0.93337155,1918.9,1918.8,4.16122412]
[1688229457502,10.4797,1919.0,1918.8,4.16122412]
[1688229457696,10.4797,1919.0,1918.9,3.282]
[1688229457893,10.4797,1919.0,1918.9,3.59472]
[1688229458902,10.76641635,1919.0,1918.9,3.59472]
[1688229459103,11.6997879,1919.0,1918.9,3.59472]
[1688229459397,11.41307155,1919.0,1918.9,3.59472]
[1688229459599,11.6997879,1919.0,1918.9,3.59472]
[1688229460699,14.9075879,1919.0,1918.9,3.59472]
[1688229464707,11.6997879,1919.0,1918.9,3.59472]
[1688229466910,11.41307155,1919.0,1918.9,3.59472]
[1688229467709,14.62087155,1919.0,1918.9,3.59472]
[1688229469206,14.9075879,1919.0,1918.9,3.59472]
[1688229469606,15.31977477,1919.0,1918.9,3.59472]
[1688229471206,14.62087155,1919.0,1918.9,3.59472]
[1688229473311,11.41307155,1919.0,1918.9,3.59472]
[1688229481115,11.6997879,1919.0,1918.9,3.59472]
[1688229482713,11.8037879,1919.0,1918.9,3.59472]
[1688229484124,11.8037879,1919.0,1918.8,3.59374]
[1688229484311,3.2078,1918.9,1918.8,3.59374]
[1688229484512,4.76620154,1918.9,1918.8,3.59374]
[1688229489007,4.76620154,1918.9,1918.7,3.59475]
[1688229489008,0.41674,1918.8,1918.7,3.59475]
[1688229489209,0.70345635,1918.8,1918.7,3.59475]
[1688229491122,0.59945635,1918.8,1918.7,3.59475]
[1688229504827,0.31274,1918.8,1918.7,3.59475]
[1688229506525,0.59945635,1918.8,1918.7,3.59475]
[1688229522148,0.59945635,1918.8,1918.7,0.31275]
[1688229524140,3.80725635,1918.8,1918.7,0.31275]
[1688229524845,3.80725635,1918.8,1918.6,9.51881]
[1688229524846,3.80725635,1918.8,1918.6,8.5806]
[1688229525052,3.57830999,1918.7,1918.4,5.8229284]
[1688229525242,3.2078,1918.5,1918.4,5.0410184]
[1688229525440,3.52059,1918.5,1918.4,5.0410184]
[1688229525640,4.76627154,1918.5,1918.4,0.0078184]
[1688229526044,4.76627154,1918.5,1918.4,0.3206284]
[1688229530443,4.76627154,1918.5,1918.4,0.0078184]
[1688229533452,4.76627154,1918.5,1918.4,0.3206284]
[1688229535458,4.76627154,1918.5,1918.4,0.0078184]
[1688229535848,8.12327154,1918.5,1918.4,0.0078184]
[1688229538749,8.54727058,1918.5,1918.4,0.0078184]
[1688229543563,7.61389903,1918.5,1918.4,0.0078184]
[1688229545464,10.89589903,1918.5,1917.7,10.94987598]
[1688229545662,6.4718,1917.8,1917.7,10.94987598]
[1688229545964,7.07141635,1917.8,1917.7,10.94987598]
[1688229546153,7.07141635,1917.8,1917.7,0.42647598]
[1688229546358,7.07141635,1917.8,1917.6,0.31293]
[1688229546562,17.04241635,1917.8,1917.6,0.31293]
[1688229546760,17.04241635,1917.8,1917.7,0.31292]
[1688229546761,7.07141635,1917.8,1917.7,0.31292]
[1688229546960,7.07141635,1917.8,1917.7,0.31862279]
[1688229553365,6.7847,1917.8,1917.7,0.31862279]
[1688229553569,7.07141635,1917.8,1917.7,0.31862279]
[1688229559572,3.5207,1917.8,1917.7,3.60062279]
[1688229560476,3.80741635,1917.8,1917.7,3.60062279]
[1688229560766,3.80741635,1917.8,1917.7,3.28770279]
[1688229560966,7.07341635,1917.8,1917.7,0.31862279]
[1688229564975,6.7867,1917.8,1917.7,0.31862279]
[1688229565373,7.07341635,1917.8,1917.7,0.31862279]
[1688229567475,7.07341635,1917.8,1917.7,0.00570279]
[1688229567775,7.07341635,1917.8,1917.7,0.31862279]
[1688229570574,7.07341635,1917.8,1917.7,0.00570279]
[1688229570774,7.07341635,1917.8,1917.7,0.31292]
[1688229571179,7.07341635,1917.8,1917.7,0.31862279]
[1688229571984,6.7867,1917.8,1917.7,0.31862279]
[1688229572186,3.80741635,1917.8,1917.7,0.31862279]
[1688229577978,3.5207,1917.8,1917.7,0.31862279]
[1688229578383,3.80741635,1917.8,1917.7,0.31862279]
[1688229580086,7.07141635,1917.8,1917.7,0.00570279]
[1688229580278,7.07141635,1917.8,1917.7,0.31862279]
[1688229582595,6.7847,1917.8,1917.7,0.31862279]
[1688229582894,7.07141635,1917.8,1917.7,0.31862279]
[1688229585297,3.2078,1917.8,1917.7,0.31862279]
[1688229585594,3.5207,1917.8,1917.7,0.31862279]
[1688229588301,3.2078,1917.8,1917.7,3.60062279]
[1688229598798,0.00782187,1917.9,1917.7,3.60062279]
[1688229599100,0.00782187,1917.9,1917.8,4.16238412]
[1688229599298,0.00782187,1917.9,1917.8,4.1671362]
[1688229599704,4.14635,1918.4,1917.9,3.281]
[1688229600001,4.14635,1918.4,1918.3,3.59482]
[1688229600199,4.43306635,1918.4,1918.3,3.59482]
[1688229601903,4.14635,1918.4,1918.3,3.59482]
[1688229605701,4.43306635,1918.4,1918.3,3.59482]
[1688229606102,4.14635,1918.4,1918.3,3.59482]
[1688229606701,4.53706635,1918.4,1918.3,3.59482]
[1688229607708,4.53706635,1918.4,1918.3,0.31282]
[1688229607709,7.81906635,1918.4,1918.3,0.31282]
[1688229612112,4.53706635,1918.4,1918.3,0.31282]
[1688229616018,4.14635,1918.4,1918.3,0.31282]
[1688229616217,4.43306635,1918.4,1918.3,0.31282]
[1688229618310,4.53706635,1918.4,1918.2,4.06406]
[1688229618512,0.31230999,1918.3,1918.1,0.93848]
[1688229618718,3.80735635,1918.2,1918.1,0.93848]
[1688229619116,3.80735635,1918.2,1918.1,0.31286]
[1688229619311,3.80735635,1918.2,1918.0,4.32475]
[1688229619512,8.67325635,1918.2,1918.0,4.32475]
[1688229620218,0.31230999,1918.1,1918.0,4.32475]
[1688229620411,0.62516999,1918.1,1918.0,4.32475]
[1688229620725,0.62516999,1918.1,1918.0,4.32760095]
[1688229624431,0.31286,1918.1,1918.0,4.32760095]
[1688229630144,0.31286,1918.1,1918.0,0.00285095]
[1688229630333,3.66986,1918.1,1918.0,0.00285095]
[1688229630536,3.66986,1918.1,1917.8,3.282]
[1688229630731,3.2078,1917.9,1917.8,3.5949]
[1688229631039,4.11971634,1917.9,1917.8,3.5949]
[1688229632134,4.11971634,1917.9,1917.8,0.3129]
[1688229634440,4.11971634,1917.9,1917.8,0.31765208]
[1688229635639,3.52069,1917.9,1917.8,0.31765208]
[1688229635841,3.52069,1917.9,1917.8,3.59865208]
[1688229638234,3.2078,1918.1,1917.8,3.59865208]
[1688229638440,3.52066,1918.1,1918.0,3.59487]
[1688229638640,3.52066,1918.1,1918.0,3.59772095]
[1688229642052,3.52066,1918.1,1918.0,0.31572095]
[1688229642244,3.80737635,1918.1,1918.0,0.31572095]
[1688229652047,3.80737635,1918.1,1918.0,3.59772095]
[1688229653052,3.80737635,1918.1,1918.0,3.28485095]
[1688229653448,3.80737635,1918.1,1918.0,3.59772095]
[1688229656954,3.52066,1918.1,1918.0,3.59772095]
[1688229657855,3.80737635,1918.1,1918.0,3.59772095]
[1688229662547,4.74643351,1918.1,1918.0,3.59772095]
[1688229665459,4.45971716,1918.1,1918.0,3.59772095]
[1688229665755,4.74643351,1918.1,1918.0,3.59772095]
[1688229666263,4.45971716,1918.1,1918.0,3.59772095]
[1688229670657,3.52066,1918.1,1918.0,3.59772095]
[1688229676753,3.2078,1918.1,1918.0,3.59772095]
[1688229678157,3.52065,1918.1,1918.0,3.59772095]
[1688229687364,3.2078,1918.1,1918.0,3.59772095]
[1688229696078,0.416463,1918.2,1918.0,3.59772095]
[1688229696374,9.29957716,1918.3,1918.2,0.31284]
[1688229696571,9.58629351,1918.3,1918.2,3.59484]
[1688229696874,9.29957716,1918.3,1918.2,3.59484]
[1688229698374,9.72171393,1918.3,1918.2,3.59484]
[1688229701378,9.40889393,1918.3,1918.2,3.59484]
[1688229701577,9.72171393,1918.3,1918.2,3.59484]
[1688229701882,4.45967716,1918.3,1918.2,3.59484]
[1688229702177,3.52062,1918.3,1918.2,3.59484]
[1688229702570,4.45967716,1918.3,1918.2,3.59484]
[1688229707973,4.14685716,1918.3,1918.2,3.59484]
[1688229716687,4.14685716,1918.3,1918.2,4.00475853]
[1688229718686,4.45968716,1918.3,1918.2,4.00475853]
[1688229720686,4.74640351,1918.3,1918.2,4.00475853]
[1688229721188,4.74640351,1918.3,1918.2,3.59484]
[1688229721481,4.74640351,1918.3,1918.1,4.0641]
[1688229721682,0.31230999,1918.2,1918.1,4.0641]
[1688229721882,0.62514999,1918.2,1918.1,4.0641]
[1688229724482,4.14685716,1918.3,1918.1,4.0641]
[1688229724783,4.14685716,1918.3,1918.2,3.281]
[1688229724987,4.43357351,1918.3,1918.2,3.59384]
[1688229725288,4.45968716,1918.3,1918.2,3.59384]
[1688229726789,4.45968716,1918.3,1918.2,4.16132412]
[1688229726985,4.14685716,1918.3,1918.2,4.16132412]
[1688229729080,4.74640351,1918.3,1918.2,4.16132412]
[1688229731093,4.45968716,1918.3,1918.2,4.16132412]
[1688229737698,4.45968716,1918.3,1918.2,4.58644054]
[1688229755310,4.14685716,1918.3,1918.2,4.58644054]
[1688229755515,0.93905716,1918.3,1918.2,4.58644054]
[1688229755801,3.21561922,1918.5,1918.2,4.58644054]
[1688229755802,0.00781922,1918.5,1918.2,4.58644054]
[1688229756013,0.00781922,1918.5,1918.2,6.13334054]
[1688229756610,0.00781922,1918.5,1918.3,5.2941]
[1688229756808,0.00781922,1918.5,1918.4,0.88029412]
[1688229757007,0.00781922,1918.5,1918.4,6.06029412]
[1688229757597,0.00781922,1918.5,1918.4,6.16429412]
[1688229759206,6.32699278,1918.8,1918.6,0.31278]
[1688229759207,0.93885813,1918.8,1918.6,0.31278]
[1688229759402,8.68284,1918.9,1918.8,0.31275]
[1688229759606,9.62169813,1918.9,1918.8,3.59475]
[1688229760207,10.02882437,1918.9,1918.8,3.59475]
[1688229761009,4.55378437,1918.9,1918.8,4.16223412]
[1688229761306,3.61492624,1918.9,1918.8,4.16223412]
[1688229761511,3.2078,1918.9,1918.8,4.16223412]
[1688229761706,4.14665813,1918.9,1918.8,4.16223412]
[1688229763221,0.93885813,1918.9,1918.8,4.16223412]
[1688229763506,0.94667531,1919.0,1918.8,4.16223412]
[1688229763814,0.73213445,1919.0,1918.9,3.59473]
[1688229764019,0.32052718,1919.0,1918.9,3.59473]
[1688229764310,0.00781718,1919.0,1918.9,3.59473]
[1688229764716,0.94667531,1919.0,1918.9,3.59473]
[1688229765714,1.25939531,1919.0,1918.9,3.59473]
[1688229768924,0.94667531,1919.0,1918.9,3.59473]
[1688229770318,3.2078,1919.3,1919.0,0.56748412]
[1688229770517,3.2078,1919.3,1919.2,3.282]
[1688229770719,3.2078,1919.3,1919.2,3.59468]
[1688229771021,3.2078,1919.3,1919.2,4.16216412]
[1688229771411,0.94639564,1919.4,1919.2,4.16216412]
[1688229771714,0.94639564,1919.4,1919.3,3.59467]
[1688229772118,1.54576199,1919.4,1919.3,3.59467]
[1688229772309,1.25904564,1919.4,1919.3,3.59467]
[1688229772917,0.32046554,1919.4,1919.3,3.59467]
[1688229773318,1.25904564,1919.4,1919.3,3.59467]
[1688229773616,0.94639564,1919.4,1919.3,3.59467]
[1688229775521,0.00781554,1919.4,1919.3,3.59467]
[1688229778516,0.9385801,1919.6,1919.4,0.56748412]
[1688229778720,0.9385801,1919.6,1919.5,3.59463]
[1688229779418,1.53791645,1919.6,1919.5,3.59463]
[1688229780119,1.53791645,1919.6,1919.4,3.282]
[1688229780320,3.83273999,1919.5,1919.4,3.282]
[1688229780516,7.08573999,1919.5,1919.2,3.59468]
[1688229780713,3.52047,1919.3,1919.2,3.59468]
[1688229780916,3.83277999,1919.3,1919.2,3.59468]
[1688229791023,3.52047,1919.3,1919.2,3.59468]
[1688229791233,3.2078,1919.3,1919.2,3.59468]
[1688229793433,3.52047,1919.3,1919.2,3.59468]
[1688229794738,3.80718635,1919.3,1919.2,3.59468]
[1688229795141,4.4590501,1919.3,1919.2,3.59468]
[1688229796340,4.1463801,1919.3,1919.2,3.59468]
[1688229797140,3.2078,1919.3,1919.2,3.59468]
[1688229798945,0.78173,1919.4,1919.2,3.59468]
[1688229799149,1.06844635,1919.4,1919.3,3.282]
[1688229799437,1.06844635,1919.4,1919.3,3.5947]
[1688229801644,1.06844635,1919.4,1919.3,3.59469]
[1688229802746,0.78173,1919.4,1919.3,3.59469]
[1688229803137,1.06844635,1919.4,1919.3,3.59469]
[1688229810650,0.78173,1919.4,1919.3,3.59469]
[1688229811349,1.06844635,1919.4,1919.3,3.59469]
[1688229811848,4.33444635,1919.4,1919.1,3.281]
[1688229812056,3.2078,1919.2,1919.0,8.82894]
[1688229812357,0.59944635,1919.1,1919.0,8.82894]
[1688229813151,0.31273,1919.1,1919.0,8.82894]
[1688229813965,0.59944635,1919.1,1919.0,8.82894]
[1688229814466,0.31273,1919.1,1919.0,8.82894]
[1688229816665,0.59944635,1919.1,1919.0,8.82894]
[1688229818561,0.59944635,1919.1,1919.0,3.59474]
[1688229822264,0.91175634,1919.1,1918.9,8.1318]
[1688229822471,3.2078,1919.0,1918.9,3.282]
[1688229822768,3.52052,1919.0,1918.9,3.59473]
[1688229822970,3.52052,1919.0,1918.9,0.31273]
[1688229823160,4.4591001,1919.0,1918.9,0.31273]
[1688229827378,4.1463801,1919.0,1918.9,3.59473]
[1688229827676,3.52052,1919.0,1918.9,3.59473]
[1688229829378,3.2078,1919.0,1918.9,3.59473]
[1688229829778,3.52049,1919.0,1918.9,3.59473]
[1688229830078,0.31269,1919.0,1918.9,3.59473]
[1688229831274,0.72738071,1919.1,1918.9,3.59473]
[1688229831475,0.72738071,1919.1,1919.0,3.5947]
[1688229831671,0.72738071,1919.1,1919.0,4.16218412]
[1688229837381,1.01409706,1919.1,1919.0,4.16218412]
[1688229837882,1.01409706,1919.1,1919.0,3.5947]
[1688229839885,0.72738071,1919.1,1919.0,3.5947]
[1688229840485,1.01409706,1919.1,1919.0,3.5947]
[1688229844295,0.72738071,1919.1,1919.0,3.5947]
[1688229844986,0.31273,1919.1,1919.0,3.5947]
[1688229847795,4.87737471,1919.2,1919.0,3.5947]
[1688229847984,0.73099461,1919.2,1919.1,3.84948412]
[1688229848183,0.73099461,1919.2,1919.1,4.16215412]
[1688229848583,0.41830461,1919.2,1919.1,4.16215412]
[1688229848787,0.31264,1919.3,1919.1,4.16215412]
[1688229848988,0.31264,1919.3,1919.2,3.282]
[1688229849187,0.31264,1919.3,1919.2,3.59465]
[1688229849593,0.73829239,1919.3,1919.2,3.59465]
[1688229849789,0.31264,1919.3,1919.2,3.59465]
[1688229850291,3.98941,1919.4,1919.2,3.59465]
[1688229850498,3.98941,1919.4,1919.3,3.84948412]
[1688229850696,3.98941,1919.4,1919.3,4.16211412]